[Event "WYCC 2018 O16"]
[Site "Halkidiki"]
[Date "2018.10.23"]
[Round "5"]
[White "Wachinger, Nikolas"]
[Black "Peng, Hongchi"]
[Result "1-0"]
[ECO "B90"]
[WhiteElo "2360"]
[BlackElo "2273"]
[Annotator "NA"]
[PlyCount "133"]
[EventDate "2018.10.20"]
[EventType "swiss"]
[EventCountry "GRE"]
[SourceTitle "playchess.com"]
[Source "ChessBase"]
[SourceQuality "1"]
[TimeControl "40/5400+30:1800+30"]

1. e4 {[%emt 0:00:00]} c5 {[%emt 0:00:00]} 2. Nf3 {[%emt 0:00:00]} d6 {[%emt 0:00:00]} 3. d4 {[%emt 0:00:00]} cxd4 {[%emt 0:00:00]} 4. Nxd4 {[%emt 0:00:00]} Nf6 {[%emt 0:00:00]} 5. Nc3 {[%emt 0:00:08]} a6 {[%emt 0:00:00]} 6. Be3 {[%emt 0:00:15]} Ng4 {[%emt 0:05:08]} 7. Bc1 {[%emt 0:00:31]} Nf6 {[%emt 0:00:04]} 8. f3 {[%emt 0:00:26]} e5 {[%emt 0:00:20]} 9. Nb3 {[%emt 0:00:10]} Be6 {[%emt 0:00:07]} 10. Be3 {[%emt 0:00:07]} Be7 {[%emt 0:00:09]} 11. Qd2 {[%emt 0:00:13]} O-O {[%emt 0:00:06]} 12. O-O-O {[%emt 0:00:09] LiveBook: 2950 Games} Nbd7 {[%emt 0:00:06]} 13. g4 {[%emt 0:00:12]} b5 {[%emt 0:00:01]} 14. g5 {[%emt 0:00:10]} b4 {[%emt 0:00:06]} 15. Ne2 {[%emt 0:00:10]} Ne8 {[%emt 0:00:04]} 16. f4 {[%emt 0:00:08]} a5 {[%emt 0:00:05]} 17. f5 {[%emt 0:00:06]} a4 {[%emt 0:00:49]} 18. Nbd4 {[%emt 0:00:10]} exd4 {[%emt 0:00:08]} 19. Nxd4 {[%emt 0:00:03]} b3 {[%emt 0:00:11]} 20. Kb1 {[%emt 0:00:08]} bxc2+ {[%emt 0:00:04]} 21. Nxc2 {[%emt 0:00:07]} Bb3 {[%emt 0:00:02]} 22. axb3 {[%emt 0:00:08]} axb3 {[%emt 0:00:02]} 23. Na3 {[%emt 0:00:09]} d5 {[%emt 0:01:56]} 24. Qxd5 {[%emt 0:00:11]} Bxa3 {[%emt 0:00:37]} 25. Qxd7 {[%emt 0:00:06]} Qa5 {[%emt 0:05:25]} 26. Qb5 {[%emt 0:01:17]} Qc7 {[%emt 0:05:24]} 27. Qc4 {[%emt 0:00:06]} Qa5 {[%emt 0:05:17]} 28. Qxb3 {[%emt 0:00:08]} Bb4 {[%emt 0:01:19]} 29. g6 {[%emt 0:00:15]} Nd6 {[%emt 0:04:54]} 30. gxf7+ {[%emt 0:00:07]} Kh8 {[%emt 0:00:20]} 31. f6 {[%emt 0:00:06]} gxf6 {[%emt 0:39:04]} 32. Bd4 {[%emt 0:08:40]} Rxf7 {[%emt 0:01:53]} 33. Rg1 {[%emt 0:04:03]} Qa1+ {[%emt 0:11:30]} 34. Kc2 {[%emt 0:00:04]} Rc8+ {[%emt 0:00:52]} 35. Bc3 {[%emt 0:01:07]} Qa7 {[%emt 0:04:22]} 36. Qxb4 {[%emt 0:07:31]} Qf2+ {[%emt 0:03:28]} 37. Kb1 {[%emt 0:01:34]} Nxe4 {[%emt 0:01:42]} 38. Qxe4 {[%emt 0:06:22]} Qxg1 {[%emt 0:00:02]} 39. Qf3 {[%emt 0:00:43]} Qb6 {[%emt 0:01:54]} 40. Bh3 {[%emt 0:00:00]} Rg8 $18 {[%emt 0:00:00]} 41. Bg4 {[%emt 0:06:42]} Qa6 {[%emt 0:03:59]} 42. Bh5 {[%emt 0:06:05]} Rff8 {[%emt 0:00:02]} 43. Rf1 {[%emt 0:00:44]} Rg5 {[%emt 0:00:05]} 44. Bxf6+ {[%emt 0:06:52]} Rxf6 {[%emt 0:00:32]} 45. Qxf6+ {[%emt 0:00:05]} Qxf6 {[%emt 0:00:01]} 46. Rxf6 {[%emt 0:00:11]} Rxh5 {[%emt 0:00:09]} 47. Rf2 {[%emt 0:00:06]} Kg7 {[%emt 0:02:21]} 48. b4 {[%emt 0:02:42]} Rh4 {[%emt 0:01:52]} 49. Rb2 {[%emt 0:00:28]} Kf6 {[%emt 0:00:14]} 50. b5 {[%emt 0:01:01]} Rc4 {[%emt 0:00:20]} 51. b6 {[%emt 0:01:04]} Rc8 {[%emt 0:00:02]} 52. b7 {[%emt 0:00:44]} Rb8 {[%emt 0:02:02]} 53. Kc2 {[%emt 0:00:07]} Ke7 {[%emt 0:00:30]} 54. Kd3 {[%emt 0:00:23]} Kd8 {[%emt 0:01:56]} 55. Ke4 {[%emt 0:00:06]} Kc7 {[%emt 0:00:07]} 56. Kf5 {[%emt 0:00:05]} Rf8+ {[%emt 0:02:10]} 57. Kg5 {[%emt 0:00:38]} Kb8 {[%emt 0:00:16]} 58. Kh6 {[%emt 0:00:06]} Rf7 {[%emt 0:01:21]} 59. Rb4 {[%emt 0:01:01]} Re7 {[%emt 0:00:51]} 60. h4 {[%emt 0:00:07]} Rc7 {[%emt 0:03:39]} 61. Rb5 {[%emt 0:01:05]} Rd7 {[%emt 0:01:28]} 62. h5 Rc7 {[%emt 0:01:24]} 63. Rg5 {[%emt 0:01:35]} Rc6+ {[%emt 0:01:13]} 64. Kxh7 {[%emt 0:00:08]} Kxb7 {[%emt 0:00:05]} 65. h6 {[%emt 0:00:20]} Kc8 {[%emt 0:00:21]} 66. Kg7 {[%emt 0:00:07]} Rc7+ {[%emt 0:00:11]} 67. Kg8 {[%emt 0:00:07]} 1-0

[Event "WYCC 2018 O16"]
[Site "Halkidiki"]
[Date "2018.10.23"]
[Round "5"]
[White "Sankalp Gupta"]
[Black "Vrolijk, Liam"]
[Result "1-0"]
[ECO "C26"]
[WhiteElo "2352"]
[BlackElo "2437"]
[Annotator "NA"]
[PlyCount "63"]
[EventDate "2018.10.20"]
[EventType "swiss"]
[EventCountry "GRE"]
[SourceTitle "playchess.com"]
[Source "ChessBase"]
[SourceQuality "1"]
[TimeControl "40/5400+30:1800+30"]

1. e4 {[%emt 0:01:23]} e5 {[%emt 0:00:02]} 2. Nc3 {[%emt 0:00:08]} Nf6 {[%emt 0:01:12]} 3. g3 {[%emt 0:00:05]} Bc5 {[%emt 0:07:13]} 4. Bg2 {[%emt 0:00:03]} d6 {[%emt 0:00:36]} 5. h3 {[%emt 0:01:22]} Nc6 {[%emt 0:06:41]} 6. Nge2 {[%emt 0:00:13]} a6 {[%emt 0:05:57] C26: Wiener Partie} 7. O-O {[%emt 0:00:32]} h5 {[%emt 0:02:19]} 8. d3 {[%emt 0:10:41] LiveBook: 8 Games} Be6 {[%emt 0:06:36]} (8... h4 9. g4 Nh7 10. Nd5 Nf8 11. c3 Ne6 12. b4 Ba7 13. a4 Ne7 14. Kh2 Ng6 {½-½ (43) Finkel,A (2453)-Sutovsky,E (2633) Ramat Gan 2018}) 9. Nd5 {[%emt 0:07:39]} Qd7 {[%emt 0:12:45]} 10. Kh2 {[%emt 0:01:36]} O-O-O {[%emt 0:07:57]} 11. Nxf6 {[%emt 0:15:07]} gxf6 {[%emt 0:00:07]} 12. f4 $146 {[%emt 0:00:02]} ({Vorgänger:} 12. Be3 f5 13. exf5 Bxf5 14. d4 exd4 15. Nxd4 Ne5 {1-0 (26) Szumilas,P (2164)-Marchand,R (2067) Lubawka 2008}) 12... f5 {[%emt 0:05:10]} 13. exf5 {[%emt 0:00:05]} Bxf5 {[%emt 0:00:08]} 14. c3 {[%emt 0:00:17]} Bb6 {[%emt 0:03:26]} 15. a4 {[%emt 0:04:04] [#]} f6 {[%emt 0:05:33]} (15... Bg4 $1 $17 {[%mdl 512]} 16. a5 (16. hxg4 hxg4+) 16... Nxa5) 16. b4 $1 {[%emt 0:02:30]} d5 {[%emt 0:00:40]} 17. b5 {[%emt 0:06:59]} Na5 {[%emt 0:10:47]} 18. bxa6 {[%emt 0:07:10]} bxa6 {[%emt 0:00:06]} 19. fxe5 {[%emt 0:03:53]} fxe5 {[%emt 0:00:09]} 20. Bg5 {[%emt 0:06:33]} Rde8 {[%emt 0:05:18]} 21. Rb1 {[%emt 0:01:40]} e4 {[%emt 0:03:46]} 22. Nf4 {[%emt 0:01:55]} Qc6 {[%emt 0:09:10]} 23. Bh4 {[%emt 0:02:57]} Bd7 {[%emt 0:01:56]} (23... Qd7 $16) 24. dxe4 {[%emt 0:06:24]} dxe4 {[%emt 0:00:02] [#]} 25. Nd5 $1 {[%emt 0:01:15]} Nc4 {[%emt 0:00:13]} 26. a5 {[%emt 0:06:00]} Bxa5 {[%emt 0:01:34]} 27. Rf6 {[%emt 0:01:19]} Nd6 {[%emt 0:00:10]} 28. Qd4 $18 {[%emt 0:01:03]} Rh7 {[%emt 0:01:28]} 29. Qa7 {[%emt 0:01:37]} Be6 {[%emt 0:00:08]} 30. Rxe6 {[%emt 0:00:44]} Rxe6 {[%emt 0:00:13]} 31. Qb8+ {[%emt 0:00:14]} Kd7 {[%emt 0:00:02]} 32. Qd8# {[%emt 0:00:01]} 1-0

[Event "WYCC 2018 O16"]
[Site "Halkidiki"]
[Date "2018.10.23"]
[Round "5"]
[White "Mitsis, Georgios"]
[Black "Kotau, Arseni"]
[Result "1-0"]
[ECO "E91"]
[WhiteElo "2350"]
[BlackElo "2167"]
[Annotator "NA"]
[PlyCount "61"]
[EventDate "2018.10.20"]
[EventType "swiss"]
[EventCountry "GRE"]
[SourceTitle "playchess.com"]
[Source "ChessBase"]
[SourceQuality "1"]
[TimeControl "40/5400+30:1800+30"]

1. d4 {[%emt 0:01:05]} Nf6 {[%emt 0:00:00]} 2. Nf3 {[%emt 0:00:06]} g6 {[%emt 0:00:00]} 3. c4 {[%emt 0:00:04]} Bg7 {[%emt 0:00:00]} 4. Nc3 {[%emt 0:00:05]} O-O {[%emt 0:00:00]} 5. e4 {[%emt 0:00:06]} d6 {[%emt 0:00:00]} 6. Be2 {[%emt 0:00:04]} Bg4 {[%emt 0:01:30]} 7. Be3 {[%emt 0:00:33]} Nfd7 {[%emt 0:00:46]} 8. d5 {[%emt 0:00:59]} c5 {[%emt 0:06:05]} 9. h4 {[%emt 0:01:06]} b5 {[%emt 0:03:31]} 10. cxb5 {[%emt 0:12:47]} Bxf3 {[%emt 0:04:26]} 11. Bxf3 {[%emt 0:01:13]} a6 {[%emt 0:00:02]} 12. a4 {[%emt 0:03:07]} Qa5 {[%emt 0:01:33]} 13. Bd2 {[%emt 0:01:37]} Ne5 {[%emt 0:07:12]} 14. Be2 $16 {[%emt 0:00:24]} c4 {[%emt 0:04:05]} 15. Qb1 {[%emt 0:24:49]} Rc8 {[%emt 0:31:17]} 16. Ra3 {[%emt 0:02:00]} Qb4 {[%emt 0:09:38]} 17. Na2 {[%emt 0:13:22]} Qc5 {[%emt 0:09:24]} 18. Be3 {[%emt 0:00:23]} Qc7 {[%emt 0:00:02]} 19. b6 {[%emt 0:00:27]} Qb7 {[%emt 0:00:02]} 20. a5 {[%emt 0:00:13]} Nbd7 {[%emt 0:00:02]} 21. O-O {[%emt 0:07:27]} Nc5 {[%emt 0:00:04]} 22. Nb4 {[%emt 0:00:17]} e6 {[%emt 0:02:00]} 23. Rd1 {[%emt 0:06:14]} exd5 {[%emt 0:00:59]} 24. exd5 {[%emt 0:00:44]} f5 {[%emt 0:02:11]} 25. Nc6 {[%emt 0:02:09]} Rxc6 {[%emt 0:01:49]} 26. dxc6 {[%emt 0:00:07]} Qxc6 {[%emt 0:00:03]} 27. Qc2 {[%emt 0:03:14]} d5 {[%emt 0:02:43]} 28. f4 {[%emt 0:00:42]} Nf7 {[%emt 0:01:49]} 29. Bf3 {[%emt 0:03:28]} Rd8 {[%emt 0:02:39]} 30. Rxd5 {[%emt 0:02:24]} Rxd5 {[%emt 0:02:41]} 31. Qxc4 {[%emt 0:00:05]} 1-0

[Event "WYCC 2018 O16"]
[Site "Halkidiki"]
[Date "2018.10.23"]
[Round "5"]
[White "Koustav Chatterjee"]
[Black "Beukes, Dante M"]
[Result "1/2-1/2"]
[ECO "A05"]
[WhiteElo "2344"]
[BlackElo "2155"]
[Annotator "NA"]
[PlyCount "98"]
[EventDate "2018.10.20"]
[EventType "swiss"]
[EventCountry "GRE"]
[SourceTitle "playchess.com"]
[Source "ChessBase"]
[SourceQuality "1"]
[TimeControl "40/5400+30:1800+30"]

1. Nf3 {[%emt 0:03:18]} Nf6 {[%emt 0:00:00]} 2. b3 {[%emt 0:00:04]} g6 {[%emt 0:00:00]} 3. Bb2 {[%emt 0:00:02]} Bg7 {[%emt 0:00:00]} 4. g3 {[%emt 0:00:04]} O-O {[%emt 0:00:10]} 5. Bg2 {[%emt 0:00:05]} c5 {[%emt 0:00:33]} 6. c4 {[%emt 0:00:08]} Nc6 7. O-O {[%emt 0:00:11]} d6 {[%emt 0:00:21]} 8. d4 {[%emt 0:00:36]} Rb8 {[%emt 0:05:36]} 9. Nc3 {[%emt 0:04:50] E60: King's Indian: Unusual lines and Fianchetto Variation without Nc3} Bf5 {[%emt 0:15:05]} 10. dxc5 {[%emt 0:12:13]} dxc5 {[%emt 0:00:19]} 11. Qc1 $146 {[%emt 0:00:03]} ({Predecessor:} 11. Nh4 Bd7 12. Nd5 Nxd5 13. Bxg7 Ne3 14. fxe3 Kxg7 15. Qd5 Bg4 16. Qg5 f5 {½-½ (43) Horvath,J (2509)-Bailet,P (2469) Chambery 2014}) 11... Qc8 {[%emt 0:04:54]} 12. Nd5 {[%emt 0:03:23]} Bh3 {[%emt 0:03:26]} 13. Rd1 {[%emt 0:02:25]} Bxg2 {[%emt 0:01:07]} 14. Kxg2 {[%emt 0:00:07]} Rd8 {[%emt 0:04:21]} 15. Bxf6 {[%emt 0:05:35]} Bxf6 {[%emt 0:07:53]} 16. Nxf6+ {[%emt 0:05:15]} exf6 {[%emt 0:00:05]} 17. Rd5 {[%emt 0:00:04]} Nb4 {[%emt 0:03:22]} 18. Rxd8+ {[%emt 0:06:58]} Qxd8 {[%emt 0:00:05]} 19. h4 {[%emt 0:00:59]} Qe7 {[%emt 0:03:06]} 20. Qc3 {[%emt 0:03:45]} Rd8 {[%emt 0:03:33]} 21. h5 {[%emt 0:04:45]} Nc6 {[%emt 0:01:57]} 22. Rh1 {[%emt 0:05:25]} Nd4 {[%emt 0:03:05]} 23. Nxd4 $11 {[%emt 0:04:05]} Rxd4 {[%emt 0:03:14]} 24. Qf3 {[%emt 0:02:22]} f5 {[%emt 0:00:48]} 25. e3 {[%emt 0:02:28]} Rd2 {[%emt 0:02:00]} 26. Rd1 {[%emt 0:01:57]} Rxd1 {[%emt 0:02:24]} 27. Qxd1 {[%emt 0:00:04]} Qe4+ {[%emt 0:00:08]} 28. Qf3 {[%emt 0:02:25]} gxh5 {[%emt 0:05:12]} 29. Qxe4 {[%emt 0:07:14]} fxe4 {[%emt 0:00:05]} 30. f3 {[%emt 0:00:04]} exf3+ {[%emt 0:05:05]} 31. Kxf3 {[%emt 0:01:23]} Kg7 {[%emt 0:00:05]} 32. a3 {[%emt 0:00:16]} a5 {[%emt 0:00:29]} 33. Ke4 {[%emt 0:02:04]} Kf6 {[%emt 0:00:45]} 34. Kd5 {[%emt 0:00:55]} Kf5 {[%emt 0:02:04]} 35. Kxc5 {[%emt 0:00:10]} Kg4 {[%emt 0:00:05]} 36. Kb6 {[%emt 0:00:07]} Kxg3 {[%emt 0:00:07]} 37. Kxb7 {[%emt 0:00:03]} h4 {[%emt 0:00:11]} 38. c5 {[%emt 0:00:03]} h3 {[%emt 0:00:05]} 39. c6 {[%emt 0:00:02]} h2 {[%emt 0:00:05]} 40. c7 {[%emt 0:00:00]} h1=Q+ {[%emt 0:00:00]} 41. Kb8 {[%emt 0:00:12]} Qc6 {[%emt 0:05:04]} 42. c8=Q {[%emt 0:01:00]} Qxc8+ {[%emt 0:00:08]} 43. Kxc8 {[%emt 0:00:04]} h5 {[%emt 0:05:25]} 44. b4 {[%emt 0:00:57]} axb4 {[%emt 0:00:05]} 45. axb4 {[%emt 0:00:04]} h4 {[%emt 0:00:14]} 46. b5 {[%emt 0:00:03]} h3 {[%emt 0:00:05]} 47. b6 {[%emt 0:00:02]} h2 {[%emt 0:00:06]} 48. b7 {[%emt 0:00:02]} h1=Q {[%emt 0:00:11]} 49. b8=Q+ {[%emt 0:00:07]} Kf2 {[%emt 0:00:16]} 1/2-1/2

[Event "WYCC 2018 O16"]
[Site "Halkidiki"]
[Date "2018.10.23"]
[Round "5"]
[White "Guerra Rivera, Salvador"]
[Black "Van Malder, Dries"]
[Result "1-0"]
[ECO "A05"]
[WhiteElo "2340"]
[BlackElo "2150"]
[Annotator "NA"]
[PlyCount "83"]
[EventDate "2018.10.20"]
[EventType "swiss"]
[EventCountry "GRE"]
[SourceTitle "playchess.com"]
[Source "ChessBase"]
[SourceQuality "1"]
[TimeControl "40/5400+30:1800+30"]

1. Nf3 {[%emt 0:00:00]} Nf6 {[%emt 0:00:00]} 2. g3 {[%emt 0:00:00]} b6 {[%emt 0:00:00]} 3. Bg2 {[%emt 0:00:08]} Bb7 {[%emt 0:00:00]} 4. O-O {[%emt 0:00:13]} e6 {[%emt 0:00:00]} 5. c4 {[%emt 0:00:43]} Be7 {[%emt 0:00:06]} 6. Nc3 {[%emt 0:00:28]} O-O {[%emt 0:00:09]} 7. Re1 {[%emt 0:00:33]} c5 {[%emt 0:04:32]} 8. e4 {[%emt 0:01:31]} d6 {[%emt 0:00:16]} 9. d4 {[%emt 0:00:29]} cxd4 {[%emt 0:00:13]} 10. Nxd4 {[%emt 0:01:39]} Qc8 {[%emt 0:11:56]} 11. b3 {[%emt 0:02:43] LiveBook: 90 Games} a6 {[%emt 0:01:34]} 12. Bb2 {[%emt 0:02:36]} Nbd7 {[%emt 0:00:50]} 13. Qe2 {[%emt 0:08:51] A30: Symmetrical English: Double Fianchetto and Hedgehog} (13. h3 Re8 14. g4 g6 15. Rc1 Bf8 16. Qd2 Qc7 17. f4 e5 18. Nd5 Qd8 19. Nxf6+ Qxf6 20. Ne2 Nc5 {0-1 (29) Piorun,K (2517)-Neiksans,A (2559) Wroclaw 2014}) 13... Re8 {[%emt 0:10:35]} 14. Rad1 {[%emt 0:07:09]} Bf8 {[%emt 0:02:51]} 15. h3 {[%emt 0:09:04]} Qc7 {[%emt 0:05:42]} 16. Nc2 {[%emt 0:04:03]} Ne5 $146 {[%emt 0:14:12]} ({Predecessor:} 16... Rad8 17. Kh2 g6 18. Ne3 h5 19. Kg1 Bg7 20. f4 Nc5 {½-½ (37) Lecuyer,C (2230)-Bouhallel,R (2240) France 1997}) 17. Ne3 {[%emt 0:06:31]} Rad8 {[%emt 0:05:36]} 18. Rd2 {[%emt 0:05:35]} Nc6 {[%emt 0:04:47]} 19. Red1 {[%emt 0:02:16]} Nd7 {[%emt 0:05:59]} 20. h4 {[%emt 0:04:02]} Nc5 {[%emt 0:03:23]} 21. h5 {[%emt 0:01:55]} h6 {[%emt 0:00:38]} 22. f4 {[%emt 0:03:58]} Ba8 {[%emt 0:04:23]} 23. Qg4 {[%emt 0:02:36]} Qb8 {[%emt 0:02:05]} 24. Ne2 {[%emt 0:08:14]} Qc8 $11 {[%emt 0:09:32]} 25. Kh2 {[%emt 0:02:47]} Qc7 {[%emt 0:05:24]} 26. Nc1 {[%emt 0:06:04]} a5 {[%emt 0:01:32]} 27. Ne2 {[%emt 0:02:31]} Qb8 {[%emt 0:01:20]} 28. Nc3 {[%emt 0:00:19]} f6 {[%emt 0:01:11]} 29. Nb5 {[%emt 0:01:19]} Kh8 {[%emt 0:00:44]} 30. Qg6 {[%emt 0:00:35]} Ne7 {[%emt 0:02:52]} 31. Qf7 {[%emt 0:00:31]} Ng8 {[%emt 0:01:02]} 32. e5 {[%emt 0:01:28]} Bxg2 {[%emt 0:00:59]} 33. Nxg2 {[%emt 0:00:27]} dxe5 {[%emt 0:01:29]} 34. fxe5 {[%emt 0:00:20]} Rxd2 {[%emt 0:00:09]} 35. Rxd2 {[%emt 0:00:10]} f5 {[%emt 0:00:53]} 36. Nf4 {[%emt 0:00:14]} Kh7 {[%emt 0:00:33]} 37. Nd6 {[%emt 0:01:56]} Bxd6 {[%emt 0:00:29]} 38. exd6 {[%emt 0:00:04]} e5 {[%emt 0:00:09]} 39. Qxf5+ {[%emt 0:00:06]} Kh8 {[%emt 0:00:25]} 40. Ng6+ {[%emt 0:00:00]} Kh7 {[%emt 0:00:00]} 41. Nf8+ {[%emt 0:00:10]} Kh8 {[%emt 0:00:09]} 42. Qh7# {[%emt 0:00:03]} 1-0

[Event "WYCC 2018 O16"]
[Site "Halkidiki"]
[Date "2018.10.23"]
[Round "5"]
[White "O'Donnell, Tom"]
[Black "Kozak, Adam"]
[Result "1/2-1/2"]
[ECO "B96"]
[WhiteElo "2332"]
[BlackElo "2445"]
[Annotator "ChessBase"]
[PlyCount "98"]
[EventDate "2018.10.20"]
[EventType "swiss"]
[EventCountry "GRE"]
[SourceTitle "playchess.com"]
[Source "ChessBase"]
[SourceQuality "1"]
[TimeControl "40/5400+30:1800+30"]

1. e4 {[%emt 0:00:00]} c5 {[%emt 0:00:00]} 2. Nf3 {[%emt 0:00:00]} d6 {[%emt 0:00:00]} 3. d4 {[%emt 0:00:00]} cxd4 {[%emt 0:00:00]} 4. Nxd4 {[%emt 0:00:00]} Nf6 {[%emt 0:00:00]} 5. Nc3 {[%emt 0:00:00]} a6 {[%emt 0:00:08]} 6. Bg5 {[%emt 0:00:00]} e6 {[%emt 0:00:16]} 7. f4 {[%emt 0:00:00]} h6 {[%emt 0:00:16]} 8. Bh4 {[%emt 0:00:06]} Qb6 {[%emt 0:00:07]} 9. a3 {[%emt 0:00:37]} Be7 {[%emt 0:00:10]} 10. Bf2 {[%emt 0:00:55]} Qc7 {[%emt 0:00:18]} 11. Qf3 {[%emt 0:03:11]} Nbd7 {[%emt 0:00:39]} 12. h4 {[%emt 0:04:38]} h5 {[%emt 0:09:26]} 13. g3 {[%emt 0:08:50]} b5 {[%emt 0:05:26]} 14. Bh3 {[%emt 0:00:45]} Bb7 {[%emt 0:05:41]} 15. O-O-O {[%emt 0:02:34]} Nc5 {[%emt 0:03:31]} 16. Rhe1 {[%emt 0:01:20]} Rc8 {[%emt 0:02:29]} 17. g4 {[%emt 0:13:41]} hxg4 {[%emt 0:06:54]} 18. Bxg4 {[%emt 0:00:02]} Qa5 {[%emt 0:19:48]} 19. Qh3 {[%emt 0:18:17]} b4 {[%emt 0:15:47]} 20. axb4 {[%emt 0:00:16]} Qxb4 {[%emt 0:00:31]} 21. Bxe6 {[%emt 0:02:58]} fxe6 {[%emt 0:07:58]} 22. Nxe6 {[%emt 0:00:08]} Nxe6 {[%emt 0:01:17]} 23. Qxe6 {[%emt 0:00:07]} Qc4 {[%emt 0:00:44]} 24. Rxd6 {[%emt 0:02:19]} Qxe6 {[%emt 0:01:44]} 25. Rxe6 {[%emt 0:00:02]} Rc6 {[%emt 0:00:50]} 26. Rxc6 {[%emt 0:02:00]} Bxc6 {[%emt 0:00:07]} 27. f5 {[%emt 0:14:02]} Ng4 {[%emt 0:09:41]} 28. Bd4 {[%emt 0:01:12]} Bxh4 {[%emt 0:07:06]} 29. Rg1 {[%emt 0:01:21]} Bf6 {[%emt 0:01:58]} 30. Bxf6 {[%emt 0:00:47]} Nxf6 {[%emt 0:00:05]} 31. Rxg7 {[%emt 0:01:04]} Nxe4 {[%emt 0:00:58]} 32. Nxe4 {[%emt 0:00:59]} Bxe4 {[%emt 0:00:03]} 33. f6 {[%emt 0:03:13]} Rh1+ {[%emt 0:00:45]} 34. Kd2 {[%emt 0:00:05]} Rh2+ {[%emt 0:00:23]} 35. Ke3 {[%emt 0:00:23]} Bxc2 {[%emt 0:01:33]} 36. Ra7 {[%emt 0:00:07]} Rh3+ {[%emt 0:00:31]} 37. Kd4 {[%emt 0:00:08]} Bd3 {[%emt 0:00:28]} 38. Re7+ {[%emt 0:00:21]} Kf8 {[%emt 0:00:46]} 39. Re3 {[%emt 0:00:05]} Rxe3 {[%emt 0:00:30]} 40. Kxe3 {[%emt 0:00:00]} Bc4 {[%emt 0:00:00]} 41. b3 {[%emt 0:00:50]} Bb5 {[%emt 0:00:35]} 42. Kd4 {[%emt 0:00:09]} Kf7 {[%emt 0:00:04]} 43. Kc3 {[%emt 0:00:06]} Kxf6 {[%emt 0:00:05]} 44. Kb2 {[%emt 0:00:05]} Ke5 {[%emt 0:00:06]} 45. Ka1 {[%emt 0:00:08]} Kd4 {[%emt 0:02:14]} 46. Kb1 {[%emt 0:00:07]} Kc3 {[%emt 0:00:06]} 47. Ka1 {[%emt 0:00:04]} Kxb3 {[%emt 0:03:57]} 48. Kb1 {[%emt 0:00:16]} Bd3+ {[%emt 0:00:02]} 49. Ka1 {[%emt 0:00:06]} a5 {[%emt 0:00:03]} 1/2-1/2

[Event "WYCC 2018 O16"]
[Site "Halkidiki"]
[Date "2018.10.23"]
[Round "5"]
[White "Morgunov, Daniel"]
[Black "Vatsal Singhania"]
[Result "1/2-1/2"]
[ECO "B91"]
[WhiteElo "2328"]
[BlackElo "2128"]
[Annotator "NA"]
[PlyCount "95"]
[EventDate "2018.10.20"]
[EventType "swiss"]
[EventCountry "GRE"]
[SourceTitle "playchess.com"]
[Source "ChessBase"]
[SourceQuality "1"]
[TimeControl "40/5400+30:1800+30"]

1. e4 {[%emt 0:00:00]} c5 {[%emt 0:00:00]} 2. Nf3 {[%emt 0:00:00]} d6 {[%emt 0:00:00]} 3. d4 {[%emt 0:00:00]} cxd4 {[%emt 0:00:00]} 4. Nxd4 {[%emt 0:00:00]} Nf6 {[%emt 0:00:00]} 5. Nc3 {[%emt 0:00:00]} a6 {[%emt 0:00:02]} 6. g3 {[%emt 0:00:37]} g6 {[%emt 0:05:02]} 7. Bg2 {[%emt 0:01:31]} Bg7 {[%emt 0:00:04]} 8. O-O {[%emt 0:00:22]} O-O {[%emt 0:00:06]} 9. h3 {[%emt 0:09:46]} Nc6 {[%emt 0:01:17]} 10. Be3 {[%emt 0:06:20]} Bd7 {[%emt 0:00:22] LiveBook: 53 Games} 11. f4 {[%emt 0:08:28] B91: Sicilian Najdorf: 6 g3} (11. Nde2 Rc8 12. b3 b5 13. Nd5 Be6 14. Qd2 Ne5 15. f4 Ned7 16. Nd4 Nc5 17. Nxe6 Nxe6 18. Rac1 Nc5 19. Nxf6+ Bxf6 {½-½ (98) Grischuk,A (2767)-Nepomniachtchi,I (2751) Moscow 2018}) 11... Rc8 {[%emt 0:02:17]} 12. Nb3 {[%emt 0:05:52]} b5 {[%emt 0:03:28]} 13. a3 {[%emt 0:01:18]} Qc7 {[%emt 0:09:56]} (13... Nh5 $11) 14. Qe1 $146 {[%emt 0:01:37]} ({Predecessor:} 14. Qd2 Rfd8 15. Qf2 Re8 16. Rad1 Be6 17. Nd4 Nxd4 18. Bxd4 Bc4 19. Rfe1 {½-½ (43) Kuzevanova,E (2131)-Zakurdjaeva,I (2295) St Petersburg 2009}) 14... Be6 {[%emt 0:37:34]} 15. Nd5 {[%emt 0:02:55]} Bxd5 {[%emt 0:00:23]} 16. exd5 {[%emt 0:00:05]} Nb8 {[%emt 0:00:05]} 17. Nd4 {[%emt 0:01:37]} Qb7 {[%emt 0:02:56]} 18. Rd1 {[%emt 0:10:50]} Nxd5 {[%emt 0:02:44]} 19. Ne2 {[%emt 0:07:04]} e6 {[%emt 0:00:37]} 20. Nc3 {[%emt 0:01:37]} Rfe8 {[%emt 0:10:23]} 21. f5 {[%emt 0:06:08]} Qe7 $11 {[%emt 0:02:22]} ({Reject} 21... gxf5 22. Nxd5 exd5 23. Qd2 $11) (21... Bxc3 $15 22. bxc3 Nd7) 22. Bxd5 {[%emt 0:08:06]} Bxc3 {[%emt 0:09:41]} 23. bxc3 {[%emt 0:00:36]} exd5 {[%emt 0:00:06]} 24. Bd4 {[%emt 0:08:15]} Qxe1 {[%emt 0:00:09]} 25. Rfxe1 {[%emt 0:00:36]} Rxe1+ {[%emt 0:01:25]} 26. Rxe1 {[%emt 0:00:03]} gxf5 {[%emt 0:00:18]} 27. Rd1 {[%emt 0:06:11]} Nd7 {[%emt 0:05:28]} 28. Rf1 {[%emt 0:00:42]} Ne5 {[%emt 0:00:45]} 29. Rxf5 {[%emt 0:00:47]} Kg7 {[%emt 0:00:18]} 30. g4 {[%emt 0:01:29]} Rc4 {[%emt 0:01:37]} 31. Kg2 {[%emt 0:03:44]} Ra4 {[%emt 0:00:21]} 32. g5 {[%emt 0:00:31]} Rxa3 {[%emt 0:02:05]} 33. Rf6 {[%emt 0:00:07]} Nc6 {[%emt 0:00:17]} 34. Rxd6+ {[%emt 0:01:22]} Nxd4 {[%emt 0:00:05]} 35. cxd4 {[%emt 0:00:07]} Rc3 {[%emt 0:00:08]} 36. Rxa6 {[%emt 0:00:15]} Rxc2+ {[%emt 0:00:05]} 37. Kg3 {[%emt 0:00:10]} Rc4 {[%emt 0:00:26]} 38. Ra5 {[%emt 0:00:58]} Rxd4 {[%emt 0:01:03]} 39. Rxb5 {[%emt 0:00:08]} Kg6 {[%emt 0:00:05]} 40. h4 {[%emt 0:00:00]} Kh5 {[%emt 0:00:00]} 41. Rb7 {[%emt 0:15:09]} Rg4+ {[%emt 0:02:58]} 42. Kf3 {[%emt 0:01:25]} Rxh4 {[%emt 0:00:17]} 43. Rxf7 {[%emt 0:00:32]} Kg6 {[%emt 0:00:47]} 44. Rd7 {[%emt 0:00:40]} Rd4 {[%emt 0:00:12]} 45. Kg3 {[%emt 0:04:08]} Rd1 {[%emt 0:00:17]} 46. Kf2 {[%emt 0:01:28]} Rd3 {[%emt 0:00:16]} 47. Ke2 {[%emt 0:00:31]} Rd4 {[%emt 0:00:23]} 48. Kf3 {[%emt 0:00:23]} 1/2-1/2